bitfinex/quotes_ETHUSD_20230109
["timestamp","ask_amount","ask_price","bid_price","bid_amount"]
[1673303571293,22.73166,1323.6,1323.3,27.09181677]
[1673303571492,15.1763,1323.6,1323.3,34.64845677]
[1673303571704,15.1763,1323.6,1323.3,35.77288173]
[1673303572096,15.1763,1323.6,1323.4,1.87478171]
[1673303573278,22.73145,1323.6,1323.4,1.87478171]
[1673303574409,15.1763,1323.6,1323.4,1.87478171]
[1673303575573,15.1763,1323.6,1323.4,4.68694993]
[1673303576009,7.62115,1323.6,1323.4,4.68694993]
[1673303576232,0.066,1323.6,1323.4,9.20735564]
[1673303576568,12.50475148,1323.8,1323.4,27.25527571]
[1673303576880,12.50475148,1323.8,1323.4,30.06744393]
[1673303577048,20.05883148,1323.8,1323.4,30.06744393]
[1673303577252,27.61291148,1323.8,1323.4,30.06744393]
[1673303577793,1.69853635,1323.7,1323.4,30.06744393]
[1673303578005,1.70053635,1323.7,1323.4,30.06544393]
[1673303578216,1.69853635,1323.7,1323.4,30.06744393]
[1673303580212,1.69853635,1323.7,1323.4,33.86510457]
[1673303580418,4.02925148,1323.8,1323.5,2.1047159]
[1673303580749,11.51731148,1323.8,1323.5,19.05011454]
[1673303580968,12.15011148,1323.8,1323.5,26.67183454]
[1673303581180,12.15011148,1323.8,1323.5,29.48387825]
[1673303581526,9.88539635,1323.8,1323.5,29.48387825]
[1673303581925,19.70417148,1323.8,1323.5,14.37267825]
[1673303583162,19.70417148,1323.8,1323.5,21.92839825]
[1673303584043,17.43945635,1323.8,1323.5,21.92839825]
[1673303584367,12.15011148,1323.8,1323.5,21.92839825]
[1673303585110,9.88539635,1323.8,1323.5,24.74033087]
[1673303585312,8.18686,1323.8,1323.5,25.86475583]
[1673303585535,7.62006,1323.8,1323.5,24.74033087]
[1673303585747,2.26523635,1323.9,1323.8,1.05873324]
[1673303586055,9.25197635,1323.9,1323.8,1.05873324]
[1673303586268,1.76453635,1323.9,1323.8,1.05873324]
[1673303586481,1.69853635,1323.9,1323.8,1.05873324]
[1673303586977,9.25197635,1323.9,1323.8,1.05873324]
[1673303587172,9.31797635,1323.9,1323.8,1.05873324]
[1673303587405,1.76453635,1323.9,1323.8,1.05873324]
[1673303587575,1.69853635,1323.9,1323.8,1.05873324]
[1673303588344,9.25197635,1323.9,1323.8,1.05873324]
[1673303588569,9.31797635,1323.9,1323.8,1.05873324]
[1673303591813,11.58269148,1323.9,1323.8,1.05873324]
[1673303592009,9.31797635,1323.9,1323.8,1.05873324]
[1673303594036,1.76453635,1323.9,1323.8,1.05873324]
[1673303594251,9.25197635,1323.9,1323.8,1.05873324]
[1673303594464,9.31797635,1323.9,1323.8,1.05873324]
[1673303594973,1.76453635,1323.9,1323.8,1.05873324]
[1673303595142,1.69853635,1323.9,1323.8,1.05873324]
[1673303598084,1.69853635,1323.9,1323.8,8.61274324]
[1673303598334,1.69853635,1323.9,1323.8,8.67874324]
[1673303600232,1.69853635,1323.9,1323.8,16.23275324]
[1673303602334,1.69853635,1323.9,1323.8,8.67874324]
[1673303604424,1.69853635,1323.9,1323.8,16.23275324]
[1673303604703,1.69853635,1323.9,1323.8,8.67874324]
[1673303607920,3.96325148,1323.9,1323.8,8.67874324]
[1673303608617,3.96325148,1323.9,1323.8,8.67624004]
[1673303610336,1.69853635,1323.9,1323.8,8.67624004]
[1673303611346,1.69853635,1323.9,1323.8,1.12223004]
[1673303611561,24.35885635,1323.9,1323.8,1.05623004]
[1673303611812,24.42485635,1323.9,1323.8,1.05623004]
[1673303612391,16.87141635,1323.9,1323.8,1.05623004]
[1673303612921,9.31797635,1323.9,1323.8,1.05623004]
[1673303613574,11.58269148,1323.9,1323.8,1.05623004]
[1673303614724,0.066,1323.9,1323.8,23.71826004]
[1673303614943,6.38427084,1324.1,1323.8,26.38608604]
[1673303614944,4.75121328,1324.1,1323.8,26.38608604]
[1673303615153,4.75121328,1324.1,1323.9,0.23]
[1673303615154,1.69853635,1324.0,1323.9,0.23]
[1673303615490,1.69853635,1324.0,1323.9,7.78344]
[1673303615679,1.69853635,1324.0,1323.9,7.84944]
[1673303616930,4.75121328,1324.1,1323.9,15.40288]
[1673303617141,4.68521328,1324.1,1323.9,15.40288]
[1673303617574,1.69853635,1324.0,1323.9,15.40288]
[1673303618438,1.69853635,1324.0,1323.9,22.95632]
[1673303618861,4.75121328,1324.1,1323.9,15.40288]
[1673303619184,4.68521328,1324.1,1323.9,22.95632]
[1673303619773,1.69853635,1324.0,1323.9,22.95632]
[1673303619986,1.69853635,1324.0,1323.9,26.3501106]
[1673303622839,4.75121328,1324.1,1323.9,26.3501106]
[1673303623018,4.68521328,1324.1,1323.9,22.95632]
[1673303623227,1.69853635,1324.0,1323.9,22.95632]
[1673303624815,3.05267693,1324.1,1323.9,28.6280416]
[1673303624816,0.012,1324.1,1323.9,28.6280416]
[1673303624959,33.47881858,1324.4,1324.0,28.15480698]
[1673303625173,33.47881858,1324.4,1324.2,22.65516]
[1673303625385,33.47881858,1324.4,1324.2,22.72116]
[1673303625386,31.21825968,1324.4,1324.2,22.72116]
[1673303625554,0.87825968,1324.4,1324.2,22.72116]
[1673303625764,0.87825968,1324.4,1324.3,15.3323]
[1673303625765,3.63931858,1324.4,1324.3,15.3323]
[1673303626006,3.63931858,1324.4,1324.3,15.3983]
[1673303626297,0.24575968,1324.4,1324.3,19.19596064]
[1673303627457,0.24575968,1324.4,1324.3,11.64481064]
[1673303628410,0.24575968,1324.4,1324.3,29.4218497]
[1673303629286,0.24575968,1324.4,1324.3,21.8706997]
[1673303629712,0.24575968,1324.4,1324.3,29.4218497]
[1673303631295,0.24575968,1324.4,1324.3,36.9729997]
[1673303633360,0.24575968,1324.4,1324.3,29.4218497]
[1673303633583,0.24575968,1324.4,1324.3,33.21674416]
[1673303633829,0.24575968,1324.4,1324.3,36.9729997]
[1673303634045,0.24575968,1324.4,1324.3,37.5395997]
[1673303634218,9.68e-06,1324.4,1324.3,37.5395997]
[1673303634568,0.23584988,1324.5,1324.4,0.00199032]
[1673303634915,0.23584988,1324.5,1324.4,26.45139096]
[1673303635099,0.23584988,1324.5,1324.4,32.35649396]
[1673303635721,0.23584988,1324.5,1324.4,32.92299396]
[1673303637353,0.23584988,1324.5,1324.4,25.37241396]
[1673303637934,0.23584988,1324.5,1324.4,9.70475396]
[1673303638300,0.23584988,1324.5,1324.4,4.09565096]
[1673303638507,0.23584988,1324.5,1324.4,11.58023096]
[1673303638720,0.23584988,1324.5,1324.4,11.64623096]
[1673303639668,0.23584988,1324.5,1324.4,7.84857032]
[1673303639877,0.23584988,1324.5,1324.4,15.39915032]
[1673303640135,0.23584988,1324.5,1324.4,28.20839335]
[1673303642022,0.23584988,1324.5,1324.4,13.10723335]
[1673303642243,0.23584988,1324.5,1324.4,5.55665335]
[1673303642400,0.23584988,1324.5,1324.4,0.29799032]
[1673303642773,0.23584988,1324.5,1324.4,0.23199032]
[1673303643136,0.23584988,1324.5,1324.4,7.78257032]
[1673303643347,0.23584988,1324.5,1324.4,7.84857032]
[1673303644308,22.88587988,1324.5,1324.4,0.06799032]
[1673303644521,22.95187988,1324.5,1324.4,0.00199032]
[1673303644731,23.51837988,1324.5,1324.4,0.00199032]
[1673303645446,29.00597327,1324.5,1324.4,0.00199032]
[1673303645661,25.21107881,1324.5,1324.4,0.00199032]
[1673303646293,27.46911215,1324.5,1324.4,0.00199032]
[1673303646498,25.21107881,1324.5,1324.4,0.00199032]
[1673303647121,27.46911215,1324.5,1324.4,0.00199032]
[1673303648930,25.77641322,1324.5,1324.4,0.00199032]
[1673303649181,27.46778533,1324.5,1324.4,0.00199032]
[1673303649342,25.77641322,1324.5,1324.4,0.00199032]
[1673303649798,36.15348212,1324.5,1324.4,0.00199032]
[1673303650614,39.15348212,1324.5,1324.4,0.00199032]
[1673303651590,36.89544878,1324.5,1324.4,0.00199032]
[1673303654305,40.69310942,1324.5,1324.4,0.00199032]
[1673303656691,0.00048483,1324.4,1324.0,7.61878]
[1673303657003,22.65378,1324.3,1324.0,11.587691]
[1673303657217,7.61724,1324.3,1324.0,19.140561]
[1673303657469,9.31067071,1324.3,1324.0,19.140561]
[1673303658474,16.86182071,1324.3,1324.0,19.140561]
[1673303658680,9.31058071,1324.3,1324.0,19.140561]
[1673303660361,15.1683,1324.3,1324.0,19.140561]
[1673303660691,7.61715,1324.3,1324.0,19.140561]
[1673303661131,15.1683,1324.3,1324.0,19.140561]
[1673303661312,15.1683,1324.3,1324.0,11.587691]
[1673303661757,7.61715,1324.3,1324.0,19.140561]
[1673303662892,0.066,1324.3,1324.0,26.693431]
[1673303663106,7.55124,1324.3,1324.0,19.140561]
[1673303663319,15.16848,1324.3,1324.0,19.140561]
[1673303664175,7.61724,1324.3,1324.0,19.140561]
[1673303664619,7.61724,1324.3,1324.0,26.693431]
[1673303665178,7.61724,1324.3,1324.0,19.140561]
[1673303665671,9.31067071,1324.3,1324.0,19.140561]
[1673303666407,9.31067071,1324.3,1324.0,26.693431]
[1673303666778,9.31067071,1324.3,1324.0,19.140561]
[1673303669107,16.86191071,1324.3,1324.0,19.140561]
[1673303670348,9.31067071,1324.3,1324.0,26.693431]
[1673303670558,9.31067071,1324.3,1324.0,19.140561]
[1673303673230,11.56857865,1324.3,1324.0,19.140561]
[1673303673394,11.56848865,1324.3,1324.0,19.140561]
[1673303673605,19.11963865,1324.3,1324.0,19.140561]
[1673303674388,26.67078865,1324.3,1324.0,11.587691]
[1673303674601,19.11963865,1324.3,1324.0,11.587691]
[1673303675332,19.11963865,1324.3,1324.0,19.140561]
[1673303675548,19.11963865,1324.3,1324.0,11.587691]
[1673303676564,26.67078865,1324.3,1324.0,11.587691]
[1673303677094,1.69343071,1324.2,1324.0,11.587691]
[1673303678110,16.79706071,1324.2,1324.0,0.066]
[1673303678397,16.79706071,1324.2,1323.9,8.3973]
[1673303678398,12.63743684,1324.1,1323.9,8.4633]
[1673303678587,1.69674954,1324.0,1323.9,8.4633]
[1673303678777,2.25790794,1324.0,1323.9,0.066]
[1673303678976,25.4856689,1324.0,1323.7,0.02835332]
[1673303679225,19.06907471,1323.9,1323.7,0.02835332]
[1673303679434,9.25190916,1323.8,1323.7,0.02835332]
[1673303679774,7.62001,1323.8,1323.7,0.02835332]
[1673303679925,15.17402,1323.8,1323.7,0.02835332]
[1673303680307,22.72803,1323.8,1323.7,0.02835332]
[1673303680457,24.42592916,1323.8,1323.7,0.02835332]
[1673303680906,24.42592916,1323.8,1323.7,0.02582871]
[1673303680907,22.72803,1323.8,1323.7,0.02582871]
[1673303687973,30.28204,1323.8,1323.7,0.02582871]
[1673303688995,30.84884,1323.8,1323.7,0.02582871]
[1673303689208,38.80704,1323.8,1323.7,0.02582871]
[1673303689416,44.3025998,1323.8,1323.7,0.02582871]
[1673303689643,45.60470064,1323.8,1323.7,0.02582871]
[1673303690071,49.3995951,1323.8,1323.7,0.02582871]
[1673303690279,45.60470064,1323.8,1323.7,0.02582871]
[1673303690924,51.85385144,1323.8,1323.7,0.02582871]
[1673303691082,48.05895698,1323.8,1323.7,0.02582871]
[1673303691500,51.85385144,1323.8,1323.7,0.02582871]
[1673303693217,48.05895698,1323.8,1323.7,0.02582871]
[1673303693827,51.85385144,1323.8,1323.7,0.02582871]
[1673303694153,46.36105782,1323.8,1323.7,0.02582871]
[1673303694814,48.05895698,1323.8,1323.7,0.02582871]
[1673303695388,59.81585144,1323.8,1323.7,0.02582871]
[1673303696181,60.75457219,1323.8,1323.7,0.02582871]
[1673303696699,63.01843774,1323.8,1323.7,0.02582871]
[1673303696869,62.26208056,1323.8,1323.7,0.02582871]
[1673303697530,60.5641814,1323.8,1323.7,0.02582871]
[1673303697728,62.25413935,1323.8,1323.7,0.02582871]
[1673303699720,59.9902738,1323.8,1323.7,0.02582871]
[1673303700383,61.12737475,1323.8,1323.7,0.02582871]
[1673303700916,63.38027483,1323.8,1323.7,0.02582871]
[1673303701536,7.962,1323.6,1323.3,0.81214266]
[1673303701720,34.02054064,1323.5,1323.3,0.02330496]
[1673303701914,3.79766064,1323.4,1323.3,0.02330496]
[1673303702119,34.02282064,1323.4,1323.3,0.02330496]
[1673303702372,34.08882064,1323.4,1323.3,0.02330496]
[1673303705001,34.84517782,1323.4,1323.3,0.02330496]
[1673303705219,34.65582064,1323.4,1323.3,0.02330496]
[1673303705371,34.08882064,1323.4,1323.3,0.02330496]
[1673303705585,37.08882064,1323.4,1323.3,0.02330496]
[1673303708523,33.29116,1323.4,1323.3,0.02330496]
[1673303709733,0.066,1323.4,1323.3,0.02330496]
[1673303709940,15.11193,1323.5,1323.3,0.02330496]
[1673303709941,22.73398,1323.5,1323.3,0.02330496]
[1673303710100,22.7341,1323.5,1323.3,0.02330496]
[1673303710307,0.066,1323.5,1323.3,0.02330496]
[1673303710628,7.55572,1323.5,1323.3,0.02330496]
[1673303710835,15.17767,1323.5,1323.3,0.02330496]
[1673303712357,22.73362,1323.5,1323.3,0.02330496]
[1673303712743,15.17767,1323.5,1323.3,0.02330496]
[1673303713181,7.62172,1323.5,1323.3,7.58011496]
[1673303713390,7.62172,1323.5,1323.3,0.08930496]
[1673303713725,22.73316,1323.5,1323.3,0.02330496]
[1673303714565,15.17744,1323.5,1323.3,0.02330496]
[1673303715406,7.62172,1323.5,1323.3,0.02330496]
[1673303715560,15.17744,1323.5,1323.3,0.02330496]
[1673303716045,7.62172,1323.5,1323.3,0.02330496]
[1673303716357,15.17744,1323.5,1323.3,0.02330496]
[1673303716522,7.62172,1323.5,1323.3,0.02330496]
[1673303716735,15.17744,1323.5,1323.3,0.02330496]
[1673303716946,7.62172,1323.5,1323.3,0.02330496]
[1673303717160,15.17744,1323.5,1323.3,0.02330496]
[1673303717368,7.62172,1323.5,1323.3,7.58016496]
[1673303717600,15.17744,1323.5,1323.3,0.08930496]
[1673303717810,22.73316,1323.5,1323.3,0.02330496]
[1673303721244,0.567,1323.4,1323.3,0.02330496]
[1673303721611,8.12329,1323.4,1323.3,0.02330496]
[1673303721840,15.74558,1323.4,1323.3,0.02330496]
[1673303721990,23.30187,1323.4,1323.3,0.02330496]
[1673303722193,8.18929,1323.4,1323.3,0.02330496]
[1673303722402,0.633,1323.4,1323.3,0.02330496]
[1673303722653,0.567,1323.4,1323.3,0.02330496]
[1673303722822,8.12329,1323.4,1323.3,0.02330496]
[1673303723028,8.18929,1323.4,1323.3,0.02330496]
[1673303723866,23.30187,1323.4,1323.3,0.02330496]
[1673303724919,23.30187,1323.4,1323.3,0.02127804]
[1673303725550,30.85816,1323.4,1323.3,0.02127804]
[1673303727386,23.30187,1323.4,1323.3,0.02127804]
[1673303727552,24.99171034,1323.4,1323.3,0.02127804]
[1673303728961,17.43542034,1323.4,1323.3,0.02127804]
[1673303729122,16.86842034,1323.4,1323.3,0.02127804]
[1673303729333,15.17858,1323.4,1323.3,0.02127804]
[1673303729652,0.066,1323.4,1323.3,7.57813804]
[1673303730020,9.81251034,1323.5,1323.3,0.08727804]
[1673303730188,17.43455034,1323.5,1323.3,0.02127804]
[1673303730632,24.99058034,1323.5,1323.3,0.02127804]
[1673303730956,24.99057034,1323.5,1323.3,0.02127804]
[1673303731330,17.43454034,1323.5,1323.3,0.02127804]
[1673303731543,9.87851034,1323.5,1323.3,0.02127804]
[1673303732113,9.87846034,1323.5,1323.3,0.02127804]
[1673303732639,9.87846034,1323.5,1323.4,0.43291258]
[1673303732953,24.98990034,1323.5,1323.4,0.43291258]
[1673303733403,27.24302079,1323.5,1323.4,0.43291258]
[1673303734046,28.38023935,1323.5,1323.4,0.43291258]
[1673303734351,35.93595935,1323.5,1323.4,0.43291258]
[1673303735450,28.38023935,1323.5,1323.4,0.43291258]
[1673303735663,33.6828389,1323.5,1323.4,0.43291258]
[1673303735988,29.92477954,1323.5,1323.4,0.43291258]
[1673303736200,40.48049954,1323.5,1323.4,0.43291258]
[1673303738311,37.65344064,1323.5,1323.4,0.43291258]
[1673303739256,30.09772064,1323.5,1323.4,0.43291258]
[1673303740833,33.49479333,1323.5,1323.4,0.43291258]
[1673303741408,30.09772064,1323.5,1323.4,0.43291258]
[1673303741581,37.65344064,1323.5,1323.4,0.43291258]
[1673303742199,30.09772064,1323.5,1323.4,0.43291258]
[1673303742455,41.4483351,1323.5,1323.4,0.43291258]
[1673303742678,37.65344064,1323.5,1323.4,0.43291258]
[1673303743044,41.05051333,1323.5,1323.4,0.43291258]
[1673303743359,44.84540779,1323.5,1323.4,0.43291258]
[1673303743603,41.05051333,1323.5,1323.4,0.43291258]
[1673303743772,44.84540779,1323.5,1323.4,0.43291258]
[1673303743984,41.05051333,1323.5,1323.4,0.43291258]
[1673303744476,44.84540779,1323.5,1323.4,0.43291258]
[1673303744929,45.60176497,1323.5,1323.4,0.43291258]
[1673303746438,53.56376497,1323.5,1323.3,0.02127804]
[1673303746619,3.79766064,1323.4,1323.3,0.02127804]
[1673303746823,34.02282064,1323.4,1323.3,0.02127804]
[1673303747044,34.08882064,1323.4,1323.3,0.02127804]
[1673303748403,26.53253064,1323.4,1323.3,0.02127804]
[1673303748765,29.36251101,1323.4,1323.3,0.02127804]
[1673303749134,29.36251228,1323.4,1323.3,0.02127804]
[1673303749595,29.36251228,1323.4,1323.3,0.01816802]
[1673303764425,36.91880228,1323.4,1323.3,0.01816802]
[1673303764634,37.48589333,1323.4,1323.3,0.01816802]
[1673303764844,26.53253064,1323.4,1323.3,0.01816802]
[1673303765064,34.08882064,1323.4,1323.3,0.01816802]
[1673303766645,36.91854,1323.4,1323.3,0.01816802]
[1673303770611,34.08882064,1323.4,1323.3,0.01816802]
[1673303772868,37.48589333,1323.4,1323.3,0.01816802]
[1673303773041,37.48589333,1323.4,1323.3,0.01443262]
[1673303773647,45.44789333,1323.4,1323.3,0.01443262]
[1673303773903,49.24278779,1323.4,1323.3,0.01443262]
[1673303774115,52.24278779,1323.4,1323.3,0.01443262]
[1673303776332,48.44789333,1323.4,1323.3,0.01443262]
[1673303779689,52.24278779,1323.4,1323.3,0.01443262]
[1673303779854,48.8457151,1323.4,1323.3,0.01443262]
[1673303780075,49.4127151,1323.4,1323.3,0.01443262]
[1673303780378,52.81162604,1323.4,1323.3,0.01443262]
[1673303780588,49.4127151,1323.4,1323.3,0.01443262]
[1673303781214,45.61782064,1323.4,1323.3,0.01443262]
[1673303781755,49.57287638,1323.4,1323.3,0.01443262]
[1673303782169,53.36777084,1323.4,1323.3,0.01443262]
[1673303782379,49.57287638,1323.4,1323.3,0.01443262]
[1673303784208,45.61782064,1323.4,1323.3,0.01443262]
[1673303785323,49.57287638,1323.4,1323.3,0.01443262]
[1673303785531,45.61782064,1323.4,1323.3,0.01443262]
[1673303785965,49.57287638,1323.4,1323.3,0.01443262]
[1673303786401,45.61782064,1323.4,1323.3,0.01443262]
[1673303786819,49.57287638,1323.4,1323.3,0.01443262]
[1673303789386,45.61782064,1323.4,1323.3,0.01443262]
[1673303789907,49.57287638,1323.4,1323.3,0.01443262]
[1673303790223,45.61782064,1323.4,1323.3,0.01443262]
[1673303790434,49.57287638,1323.4,1323.3,0.01443262]
[1673303790589,53.36777084,1323.4,1323.3,0.01443262]
[1673303791068,53.31777084,1323.4,1323.3,0.01443262]
[1673303794002,52.75077084,1323.4,1323.3,0.01443262]
[1673303794601,48.7957151,1323.4,1323.3,0.01443262]
[1673303795146,52.759788,1323.4,1323.3,0.01443262]
[1673303797154,48.7957151,1323.4,1323.3,0.01443262]
[1673303797558,52.75920076,1323.4,1323.3,0.01443262]
[1673303797886,53.48210712,1323.4,1323.3,0.01443262]
[1673303798081,49.3627151,1323.4,1323.3,0.01443262]
[1673303798636,57.6385151,1323.4,1323.3,0.01443262]
[1673303799359,58.39487228,1323.4,1323.3,0.01443262]
[1673303800099,58.62487228,1323.4,1323.3,0.01443262]
[1673303800929,58.39487228,1323.4,1323.3,0.01443262]
[1673303801201,63.3112643,1323.4,1323.1,0.03586472]
[1673303801361,11.35823599,1323.2,1323.1,0.03586472]
[1673303801686,50.95161663,1323.2,1323.1,4.72e-06]
[1673303801991,2.5,1323.1,1323.0,5.26e-06]
[1673303802209,37.42611185,1323.1,1323.0,5.26e-06]
[1673303802371,37.49211185,1323.1,1323.0,5.26e-06]
[1673303805144,45.45411185,1323.1,1323.0,5.26e-06]
[1673303806594,48.45411185,1323.1,1323.0,5.26e-06]
[1673303806814,52.24900631,1323.1,1323.0,5.26e-06]
[1673303807325,48.45411185,1323.1,1323.0,5.26e-06]
[1673303807535,52.24900631,1323.1,1323.0,5.26e-06]
[1673303808180,54.13828761,1323.1,1323.0,5.26e-06]
[1673303808398,53.57118761,1323.1,1323.0,5.26e-06]
[1673303808797,54.13828761,1323.1,1323.0,5.26e-06]
[1673303809727,10.462,1323.0,1322.8,0.02654689]
[1673303809937,53.31719929,1322.9,1322.8,0.02654689]
[1673303810151,49.4243551,1322.9,1322.8,0.02654689]
[1673303810690,52.81419331,1322.9,1322.8,0.02654689]
[1673303811106,49.4243551,1322.9,1322.8,0.02654689]
[1673303811319,52.81417259,1322.9,1322.8,0.02654689]
[1673303811675,49.4243551,1322.9,1322.8,0.02654689]
[1673303811830,52.81412384,1322.9,1322.8,0.02654689]
[1673303812298,49.01922938,1322.9,1322.8,0.02654689]
[1673303812927,52.81412384,1322.9,1322.8,0.02654689]
[1673303816140,49.4243551,1322.9,1322.8,0.02654689]
[1673303816594,50.18071228,1322.9,1322.8,0.02654689]
[1673303818217,53.00137682,1322.9,1322.8,0.02654689]
[1673303818912,49.20648236,1322.9,1322.8,0.02654689]
[1673303819363,51.4628861,1322.9,1322.8,0.02654689]
[1673303820049,43.3365361,1322.9,1322.8,0.02654689]
[1673303820201,29.55387156,1322.9,1322.8,0.02654689]
[1673303820410,15.37147548,1322.9,1322.8,0.02654689]
[1673303820623,30.48977548,1322.9,1322.8,0.02654689]
[1673303821669,33.48977548,1322.9,1322.8,0.02654689]
[1673303822844,33.48987353,1322.9,1322.8,0.02654689]
[1673303823163,31.79751438,1322.9,1322.8,0.02654689]
[1673303824000,34.61817892,1322.9,1322.8,0.02654689]
[1673303824474,44.87502682,1322.9,1322.8,0.02654689]
[1673303824689,46.01133102,1322.9,1322.8,0.02654689]
[1673303825468,42.62156228,1322.9,1322.8,0.02654689]
[1673303826192,46.01133102,1322.9,1322.8,0.02654689]
[1673303826362,42.21643656,1322.9,1322.8,0.02654689]
[1673303826577,42.62156228,1322.9,1322.8,0.02654689]
[1673303828619,46.01133102,1322.9,1322.8,0.02654689]
[1673303828844,42.62156228,1322.9,1322.8,0.02654689]
[1673303830264,46.01133102,1322.9,1322.8,0.02654689]
[1673303832470,46.01133102,1322.9,1322.8,0.02262911]
[1673303834789,45.96133102,1322.9,1322.8,0.02262911]
[1673303835211,42.16643656,1322.9,1322.8,0.02262911]
[1673303836051,49.72558656,1322.9,1322.8,0.02262911]
[1673303838892,46.33581782,1322.9,1322.8,0.02262911]
[1673303839524,49.56351228,1322.9,1322.8,0.02262911]
[1673303840252,53.52235647,1322.9,1322.8,0.02262911]
[1673303841345,45.76861782,1322.9,1322.8,0.02262911]
[1673303841652,49.72746201,1322.9,1322.8,0.02262911]
[1673303842241,53.52235647,1322.9,1322.8,0.02262911]
[1673303842445,49.79351228,1322.9,1322.7,0.02654689]
[1673303842732,18.72035049,1322.8,1322.7,6.89e-06]
[1673303843058,37.50482064,1322.8,1322.7,6.89e-06]
[1673303843209,41.65587893,1322.8,1322.7,6.89e-06]
[1673303845327,49.21559893,1322.8,1322.7,6.89e-06]
[1673303846182,49.78158767,1322.8,1322.7,6.89e-06]
[1673303853619,49.78857664,1322.8,1322.7,6.89e-06]
[1673303855626,53.5834711,1322.8,1322.7,6.89e-06]
[1673303855865,54.3021843,1322.8,1322.7,6.89e-06]
[1673303857013,54.8693843,1322.8,1322.7,6.89e-06]
[1673303858871,10.462,1322.7,1322.6,3.67e-06]
[1673303859198,48.52420017,1322.7,1322.6,3.67e-06]
[1673303859818,44.72930571,1322.7,1322.6,3.67e-06]
[1673303860768,48.52420017,1322.7,1322.6,3.67e-06]
[1673303861580,44.78778228,1322.7,1322.6,3.67e-06]
[1673303861757,48.75357236,1322.7,1322.6,3.67e-06]
[1673303861917,48.52357236,1322.7,1322.6,3.67e-06]
[1673303864040,56.08386236,1322.7,1322.6,3.67e-06]
[1673303867921,55.32750518,1322.7,1322.6,3.67e-06]
[1673303868123,56.61540712,1322.7,1322.6,3.67e-06]
[1673303870009,57.3717643,1322.7,1322.6,3.67e-06]
[1673303871381,56.64969873,1322.7,1322.6,3.67e-06]
[1673303871587,57.3717643,1322.7,1322.6,3.67e-06]
[1673303872762,52.85434028,1322.7,1322.6,3.67e-06]
[1673303873621,56.64923474,1322.7,1322.6,3.67e-06]
[1673303874183,52.85424446,1322.7,1322.6,3.67e-06]
[1673303874352,56.64913892,1322.7,1322.6,3.67e-06]
[1673303874761,52.85424446,1322.7,1322.6,3.67e-06]
[1673303876339,52.28694446,1322.7,1322.6,3.67e-06]
[1673303880958,51.53058728,1322.7,1322.6,3.67e-06]
[1673303882340,51.53058728,1322.7,1322.4,0.06796027]
[1673303882341,0.00209193,1322.6,1322.4,0.06796027]
[1673303882536,26.48195064,1322.5,1322.4,0.06796027]
[1673303882746,29.54795064,1322.5,1322.4,0.06796027]
[1673303883617,32.37982707,1322.5,1322.4,0.06796027]
[1673303885413,29.54795064,1322.5,1322.4,0.06796027]
[1673303889013,32.94616974,1322.5,1322.4,0.06796027]
[1673303895506,29.54795064,1322.5,1322.4,0.06796027]
[1673303895716,32.94616974,1322.5,1322.4,0.06796027]
[1673303896070,29.54795064,1322.5,1322.4,0.06796027]
[1673303896243,32.94616974,1322.5,1322.4,0.06796027]
[1673303897966,11.42509064,1322.5,1322.4,0.06796027]
[1673303902231,11.42509064,1322.5,1322.4,22.75396027]
[1673303902232,2.90041622,1322.5,1322.4,22.75396027]
[1673303902448,3.96786839,1322.5,1322.4,2.78023068]
[1673303902653,1.70048844,1322.5,1322.4,2.71423068]
[1673303902907,1.70048844,1322.5,1322.4,0.06796027]
[1673303902908,3.96786839,1322.5,1322.4,0.06796027]
[1673303903223,5.10189857,1322.5,1322.4,0.06796027]
[1673303903431,5.16789857,1322.5,1322.4,0.06796027]
[1673303903958,2.33348235,1322.5,1322.4,0.06796027]
[1673303904171,2.26748235,1322.5,1322.4,0.06796027]
[1673303904381,12.6627588,1322.5,1322.4,0.06796027]
[1673303904554,12.7287588,1322.5,1322.4,0.06796027]
[1673303904752,25.58470622,1322.5,1322.4,0.06796027]
[1673303906554,25.58399248,1322.5,1322.4,0.06475757]
[1673303906785,22.75029,1322.5,1322.4,0.06475757]
[1673303907006,25.58396788,1322.5,1322.4,0.06475757]
[1673303907508,18.02253788,1322.5,1322.4,0.06475757]
[1673303908154,25.58396788,1322.5,1322.4,0.06475757]
[1673303910241,22.75029,1322.5,1322.4,0.06475757]
[1673303911203,30.31172,1322.5,1322.4,0.06475757]
[1673303911637,33.7099391,1322.5,1322.4,0.06475757]
[1673303914129,37.50759974,1322.5,1322.4,0.06475757]
[1673303914349,29.94616974,1322.5,1322.4,0.06475757]
[1673303914878,29.99616974,1322.5,1322.4,0.06475757]
[1673303915097,29.94616974,1322.5,1322.4,0.06475757]
[1673303916662,37.50759974,1322.5,1322.4,0.06475757]
[1673303919127,34.10938064,1322.5,1322.4,0.06475757]
[1673303919498,37.51070562,1322.5,1322.4,0.06475757]
[1673303919831,34.10938064,1322.5,1322.4,0.06475757]
[1673303923966,37.50970202,1322.5,1322.4,0.06475757]
[1673303929835,37.50970202,1322.5,1322.4,0.06117]
[1673303935292,38.07700202,1322.5,1322.4,0.06117]
[1673303936678,37.50970202,1322.5,1322.4,0.06117]
[1673303937024,14.82541202,1322.5,1322.4,0.06117]
[1673303937202,2.89830552,1322.5,1322.4,0.06117]
[1673303937412,2.83230552,1322.5,1322.4,0.06117]
[1673303937641,2.88230552,1322.5,1322.4,0.06117]
[1673303937937,2.83230552,1322.5,1322.4,0.06117]
[1673303938983,5.09801979,1322.5,1322.4,0.06117]
[1673303939158,5.16401979,1322.5,1322.4,0.06117]
[1673303939369,2.89830552,1322.5,1322.4,0.06117]
[1673303939602,2.83230552,1322.5,1322.4,0.06117]
[1673303940296,5.09797081,1322.5,1322.4,0.06117]
[1673303940511,5.16397081,1322.5,1322.4,0.06117]
[1673303941617,2.33166529,1322.5,1322.4,0.06117]
[1673303941774,5.09797081,1322.5,1322.4,0.06117]
[1673303941980,5.16397081,1322.5,1322.4,0.06117]
[1673303942326,2.33166529,1322.5,1322.4,0.06117]
[1673303942537,1.69912455,1322.5,1322.4,0.06117]
[1673303943192,11.52621984,1322.5,1322.4,0.06117]
[1673303943348,11.59221984,1322.5,1322.4,0.06117]
[1673303944031,19.15364984,1322.5,1322.4,0.06117]
[1673303944665,11.59221984,1322.5,1322.4,0.06117]
[1673303945280,19.15364984,1322.5,1322.4,0.06117]
[1673303946281,16.88798455,1322.5,1322.4,0.06117]
[1673303946912,19.15364984,1322.5,1322.4,0.06117]
[1673303949586,26.71507984,1322.5,1322.4,0.06117]
[1673303949797,19.15364984,1322.5,1322.4,0.06117]
[1673303950222,16.88798455,1322.5,1322.4,0.06117]
[1673303951423,16.88798455,1322.5,1322.4,0.05750899]
[1673303951424,19.15364984,1322.5,1322.4,0.05750899]
[1673303951806,16.88798455,1322.5,1322.4,0.05750899]
[1673303952028,25.01595529,1322.5,1322.4,0.05750899]
[1673303952350,27.84826081,1322.5,1322.4,0.05750899]
[1673303953178,25.01595529,1322.5,1322.4,0.05750899]